fUSD/lending_fUSD_20240104
["ID","MTS","AMOUNT","RATE_DAILY","PERIOD"]
[310160223,1704384717992,-500.0,0.00035616,2]
[310160224,1704384718001,-500.0,0.00035616,2]
[310160225,1704384718010,-1935.18,0.00035616,2]
[310160226,1704384718020,-1254.54,0.00035616,2]
[310160227,1704384718030,-500.0,0.00035616,2]
[310160228,1704384718039,-2189.6,0.00035616,2]
[310160229,1704384718049,-500.0,0.00035616,2]
[310160230,1704384718058,-500.0,0.00035616,2]
[310160231,1704384718068,-1093.1,0.00035616,2]
[310160232,1704384718078,-500.0,0.00035616,2]
[310160233,1704384718087,-746.5,0.00035616,2]
[310160234,1704384718097,-500.0,0.00035616,2]
[310160235,1704384718107,-1922.89,0.00035616,2]
[310160236,1704384718120,-500.0,0.00035616,2]
[310160237,1704384718130,-500.0,0.00035616,2]
[310160238,1704384718139,-3029.2,0.00035616,2]
[310160239,1704384718149,-1065.96,0.00035616,2]
[310160240,1704384718160,-500.0,0.00035616,2]
[310160241,1704384718169,-1007.95,0.00035616,2]
[310160242,1704384718179,-11096.0,0.00035616,2]
[310160243,1704384718189,-500.0,0.00035616,2]
[310160244,1704384718199,-747.54,0.00035616,2]
[310160245,1704384718209,-760.32,0.00035616,2]
[310160246,1704384718219,-12156.16,0.00035616,2]
[310160247,1704384718229,-500.0,0.00035616,2]
[310160248,1704384718238,-834.78,0.00035616,2]
[310160249,1704384718248,-1718.28,0.00035616,2]
[310160250,1704384718258,-611.3,0.00035616,2]
[310160251,1704384718267,-697.33,0.00035616,2]
[310160252,1704384718277,-1413.99,0.00035616,2]
[310160253,1704384718287,-697.67,0.00035616,2]
[310160254,1704384718297,-1163.39,0.00035616,2]
[310160255,1704384718306,-1281.58,0.00035616,2]
[310160256,1704384718316,-883.92,0.00035616,2]
[310160257,1704384718326,-520.32,0.00035616,2]
[310160258,1704384718335,-1053.47,0.00035616,2]
[310160259,1704384718345,-726.31,0.00035616,2]
[310160260,1704384718354,-773.87,0.00035616,2]
[310160261,1704384718365,-3994.67,0.00035616,2]
[310160262,1704384718379,-500.0,0.00035616,2]
[310160263,1704384718388,-528.67,0.00035616,2]
[310160264,1704384718398,-891.04,0.00035616,2]
[310160265,1704384718410,-2976.44,0.00035616,2]
[310160266,1704384718420,-902.18,0.00035616,2]
[310160267,1704384718431,-1129.74,0.00035616,2]
[310160268,1704384718445,-500.0,0.00035616,2]
[310160269,1704384718455,-8714.16,0.00035616,2]
[310160270,1704384718465,-709.87,0.00035616,2]
[310160271,1704384718475,-573.28,0.00035616,2]
[310160272,1704384718485,-500.0,0.00035616,2]
[310160273,1704384718494,-617.6,0.00035616,2]
[310160274,1704384718504,-539.92,0.00035616,2]
[310160275,1704384718514,-500.0,0.00035616,2]
[310160276,1704384718524,-2375.82,0.00035616,2]
[310160277,1704384718534,-2912.75,0.00035616,2]
[310160278,1704384718543,-500.0,0.00035616,2]
[310160279,1704384718553,-880.41,0.00035616,2]
[310160280,1704384718562,-500.0,0.00035616,2]
[310160281,1704384718571,-990.05,0.00035616,2]
[310160282,1704384718580,-712.84,0.00035616,2]
[310160283,1704384718589,-500.0,0.00035616,2]
[310160284,1704384718597,-500.0,0.00035616,2]
[310160285,1704384718607,-1899.71,0.00035616,2]
[310160286,1704384718616,-704.89,0.00035616,2]
[310160287,1704384718626,-1360.68,0.00035616,2]
[310160288,1704384718637,-1752.91,0.00035616,2]
[310160289,1704384718647,-846.97,0.00035616,2]
[310160290,1704384718657,-500.0,0.00035616,2]
[310160291,1704384718667,-4094.39,0.00035616,2]
[310160292,1704384718676,-1446.57,0.00035616,2]
[310160293,1704384718686,-1589.28,0.00035616,2]
[310160294,1704384718696,-561.91,0.00035616,2]
[310160295,1704384718706,-500.0,0.00035616,2]
[310160296,1704384718716,-834.84,0.00035616,2]
[310160297,1704384718726,-500.0,0.00035616,2]
[310160298,1704384718736,-1546.98,0.00035616,2]
[310160299,1704384718747,-1093.14,0.00035616,2]
[310160300,1704384718757,-564.13,0.00035616,2]
[310160301,1704384718766,-1945.09,0.00035616,2]
[310160302,1704384718833,-2073.94,0.00035616,2]
[310160303,1704384718843,-893.8,0.00035616,2]
[310160304,1704384718853,-900.7,0.00035616,2]
[310160305,1704384718863,-12496.39,0.00035616,2]
[310160306,1704384718875,-561.96,0.00035616,2]
[310160307,1704384718884,-1450.8,0.00035616,2]
[310160308,1704384718893,-514.0,0.00035616,2]
[310160309,1704384718902,-500.0,0.00035616,2]
[310160310,1704384718913,-500.0,0.00035616,2]
[310160311,1704384718923,-1205.79,0.00035616,2]
[310160312,1704384718932,-621.58,0.00035616,2]
[310160313,1704384718942,-500.0,0.00035616,2]
[310160314,1704384718952,-881.27,0.00035616,2]
[310160315,1704384718961,-10382.29,0.00035616,2]
[310160316,1704384718970,-3417.84,0.00035616,2]
[310160317,1704384718980,-2270.39,0.00035616,2]
[310160318,1704384718989,-500.0,0.00035616,2]
[310160319,1704384718998,-578.21,0.00035616,2]
[310160320,1704384719008,-987.12,0.00035616,2]
[310160321,1704384719017,-552.04,0.00035616,2]
[310160322,1704384719027,-1396.67,0.00035616,2]
[310160323,1704384719036,-656.43,0.00035616,2]
[310160324,1704384719046,-940.22,0.00035616,2]
[310160325,1704384719055,-500.0,0.00035616,2]
[310160326,1704384719065,-1079.52,0.00035616,2]
[310160327,1704384719074,-1439.1,0.00035616,2]
[310160328,1704384719083,-500.0,0.00035616,2]
[310160329,1704384719093,-500.0,0.00035616,2]
[310160330,1704384719102,-1088.28,0.00035616,2]
[310160331,1704384719112,-5839.49,0.00035616,2]
[310160332,1704384719124,-500.0,0.00035616,2]
[310160333,1704384719133,-1904.93,0.00035616,2]
[310160334,1704384719143,-1535.77,0.00035616,2]
[310160335,1704384719153,-1236.96,0.00035616,2]
[310160336,1704384719162,-500.0,0.00035616,2]
[310160337,1704384719171,-500.0,0.00035616,2]
[310160338,1704384719181,-500.0,0.00035616,2]
[310160339,1704384719190,-3487.16,0.00035616,2]
[310160340,1704384719200,-4880.8,0.00035616,2]
[310160341,1704384719210,-745.3,0.00035616,2]
[310160342,1704384719219,-568.13,0.00035616,2]
[310160343,1704384719228,-2004.58,0.00035616,2]
[310160344,1704384719238,-809.18,0.00035616,2]
[310160345,1704384719247,-8885.11,0.00035616,2]
[310160346,1704384719256,-1186.38,0.00035616,2]
[310160347,1704384719265,-500.0,0.00035616,2]
[310160348,1704384719275,-500.0,0.00035616,2]
[310160349,1704384719284,-1779.45,0.00035616,2]
[310160350,1704384719293,-1353.33,0.00035616,2]
[310160351,1704384719302,-1121.93,0.00035616,2]
[310160352,1704384719310,-500.0,0.00035616,2]
[310160353,1704384719319,-150.0,0.00035616,2]
[310160354,1704384719329,-150.0,0.00035618,2]
[310160355,1704384719339,-10814.77914652,0.00035639,2]
[310160356,1704384719348,-542.69938815,0.00035639,14]
[310160357,1704384719358,-150.0,0.0003566,2]
[310160358,1704384719370,-159.57499854,0.00035665,14]
[310160359,1704384719381,-151.36920845,0.0003568,14]
[310160360,1704384719390,-164.75235422,0.00035689,14]
[310160361,1704384719400,-156.36081592,0.00035689,14]
[310160362,1704384719409,-150.0,0.0003569,2]
[310160363,1704384719418,-150.0,0.000357,2]
[310160364,1704384719427,-151.3449159,0.000357,14]
[310160365,1704384719436,-1000.0,0.00035711,2]
[310160366,1704384719446,-526.0924,0.00035711,2]
[310160367,1704384719456,-500.0,0.00035711,2]
[310160368,1704384719467,-500.0,0.00035711,2]
[310160369,1704384719477,-500.0,0.00035711,2]
[310160370,1704384719486,-500.0,0.00035711,2]
[310160371,1704384719496,-500.0,0.00035711,2]
[310160372,1704384719505,-500.0,0.00035711,2]
[310160373,1704384719514,-500.0,0.00035711,2]
[310160374,1704384719524,-500.0,0.00035711,2]
[310160375,1704384719534,-500.0,0.00035711,2]
[310160376,1704384719544,-583.2799,0.00035711,2]
[310160377,1704384719554,-150.0,0.00035716,2]
[310160378,1704384719563,-150.0,0.00035731,2]
[310160379,1704384719572,-150.00000001,0.00035732,2]
[310160380,1704384719582,-150.0,0.00035733,2]
[310160381,1704384719591,-150.0,0.0003575,2]
[310160382,1704384719600,-151.12513902,0.0003577,2]
[310160383,1704384719609,-366.30677302,0.0003579,8]
[310160384,1704384719620,-175.00833769,0.0003579,25]
[310160385,1704384719629,-542.69938815,0.00035797,14]
[310160386,1704384719638,-150.0,0.000358,2]
[310160387,1704384719648,-500.0,0.000358,2]
[310160388,1704384719657,-500.0,0.000358,2]
[310160389,1704384719666,-500.0,0.000358,2]
[310160390,1704384719675,-300.0,0.000358,9]
[310160391,1704384719684,-462.13905,0.000358,2]
[310160392,1704384719692,-2011.16,0.00035815,2]
[310160393,1704384719702,-150.0,0.00035815,2]
[310160394,1704384719711,-150.0,0.00035826,2]
[310160395,1704384719721,-155.76,0.00035841,2]
[310160396,1704384719730,-150.0,0.0003585,2]
[310160397,1704384719739,-236943.854826,0.00035854,2]
[310160398,1704384719748,-401.02908461,0.0003587,2]
[310160399,1704384719758,-400.0,0.0003587,2]
[310160400,1704384719767,-542.69938815,0.00035872,14]
[310160401,1704384719777,-150.0,0.00035878,2]
[310160402,1704384719786,-542.69938815,0.00035883,14]
[310160403,1704384719795,-150.0,0.00035885,2]
[310160404,1704384719804,-287.88813521,0.00035886,14]
[310160405,1704384719814,-1667.8,0.00035888,2]
[310160406,1704384719824,-1641.98044309,0.00035889,2]
[310160407,1704384719833,-180.33747361,0.00035889,2]
[310160408,1704384719842,-1968.74,0.00035889,2]
[310160409,1704384719851,-3576.92,0.00035889,2]
[310160410,1704384719860,-5310.38,0.00035889,2]
[310160411,1704384719870,-5485.86,0.00035889,2]
[310160412,1704384719879,-1727.19,0.00035889,2]
[310160413,1704384719888,-981.47,0.00035889,2]
[310160414,1704384719897,-1667.8,0.00035889,2]
[310160415,1704384719906,-2791.07,0.00035889,2]
[310160416,1704384719915,-545.35,0.00035889,2]
[310160417,1704384719924,-3707.22,0.00035889,2]
[310160418,1704384719934,-887.38,0.00035889,2]
[310160419,1704384719943,-830.05,0.00035889,2]
[310160420,1704384719953,-1695.17,0.00035889,2]
[310160421,1704384719962,-1057.1,0.00035889,2]
[310160422,1704384719971,-742.18,0.00035889,2]
[310160423,1704384719981,-4293.88,0.00035889,2]
[310160424,1704384719991,-2374.14,0.00035889,2]
[310160425,1704384720000,-1229.49,0.00035889,2]
[310160426,1704384720010,-500.0,0.00035889,2]
[310160427,1704384720019,-212.5087915,0.00035889,2]
[310160428,1704384720029,-2261.59,0.00035889,2]
[310160429,1704384720038,-1642.49,0.00035889,2]
[310160430,1704384720047,-500.0,0.00035889,2]
[310160431,1704384720056,-500.0,0.0003589,2]
[310160432,1704384720065,-500.0,0.0003589,2]
[310160433,1704384720075,-500.0,0.0003589,2]
[310160434,1704384720084,-589.83,0.0003589,2]
[310160435,1704384720093,-768.69,0.0003589,2]
[310160436,1704384720102,-603.66,0.0003589,2]
[310160437,1704384720112,-599.73,0.0003589,2]
[310160438,1704384720123,-609.87,0.0003589,2]
[310160439,1704384720132,-500.0,0.0003589,2]
[310160440,1704384720142,-607.88,0.0003589,2]
[310160441,1704384720151,-500.0,0.0003589,2]
[310160442,1704384720161,-500.0,0.0003589,2]
[310160443,1704384720170,-911.18,0.0003589,2]
[310160444,1704384720180,-500.0,0.0003589,2]
[310160445,1704384720190,-718.24,0.0003589,2]
[310160446,1704384720199,-690.39,0.0003589,2]
[310160447,1704384720208,-500.0,0.0003589,2]
[310160448,1704384720218,-712.49,0.0003589,2]
[310160449,1704384720227,-500.0,0.0003589,2]
[310160450,1704384720237,-500.0,0.0003589,2]
[310160451,1704384720246,-500.0,0.0003589,2]
[310160452,1704384720256,-582.68,0.0003589,2]
[310160453,1704384720265,-500.0,0.0003589,2]
[310160454,1704384720274,-500.0,0.0003589,2]
[310160455,1704384720284,-1117.06,0.0003589,2]
[310160456,1704384720294,-500.0,0.0003589,2]
[310160457,1704384720303,-500.0,0.0003589,2]
[310160458,1704384720312,-585.66,0.0003589,2]
[310160459,1704384720322,-500.0,0.0003589,2]
[310160460,1704384720332,-789.66,0.0003589,2]
[310160461,1704384720342,-500.0,0.0003589,2]
[310160462,1704384720351,-500.0,0.0003589,2]
[310160463,1704384720361,-500.0,0.0003589,2]
[310160464,1704384720373,-500.0,0.0003589,2]
[310160465,1704384720383,-500.0,0.0003589,2]
[310160466,1704384720397,-500.0,0.0003589,2]
[310160467,1704384720406,-500.0,0.0003589,2]
[310160468,1704384720415,-500.0,0.0003589,2]
[310160469,1704384720424,-500.0,0.0003589,2]
[310160470,1704384720433,-234.6894848,0.0003589,2]
[310160471,1704384720442,-500.0,0.0003589,2]
[310160472,1704384720451,-500.0,0.0003589,2]
[310160473,1704384720462,-867.28,0.0003589,2]
[310160474,1704384720472,-764.44,0.0003589,2]
[310160475,1704384720483,-883.27,0.0003589,2]
[310160476,1704384720492,-647.07225524,0.0003589,2]
[310160477,1704384720501,-500.0,0.0003589,2]
[310160478,1704384720511,-500.0,0.0003589,2]
[310160479,1704384720520,-842.43,0.0003589,2]
[310160480,1704384720530,-682.97,0.0003589,2]
[310160481,1704384720539,-500.0,0.0003589,2]
[310160482,1704384720548,-500.0,0.0003589,2]
[310160483,1704384720558,-500.0,0.0003589,2]
[310160484,1704384720596,-670.92,0.0003589,2]
[310160485,1704384720606,-500.0,0.0003589,2]
[310160486,1704384720616,-216.47479349,0.0003589,2]
[310160487,1704384720625,-1005.13,0.0003589,2]
[310160488,1704384720634,-1406.92,0.0003589,2]
[310160489,1704384720643,-725.93,0.0003589,2]
[310160490,1704384720653,-699.62,0.0003589,2]
[310160491,1704384720663,-1117.49,0.0003589,2]
[310160492,1704384720672,-674.55,0.0003589,2]
[310160493,1704384720682,-500.0,0.0003589,2]
[310160494,1704384720691,-677.2,0.0003589,2]
[310160495,1704384720701,-500.0,0.0003589,2]
[310160496,1704384720710,-500.0,0.0003589,2]
[310160497,1704384720719,-500.0,0.0003589,2]
[310160498,1704384720729,-500.0,0.0003589,2]
[310160499,1704384720739,-782.63,0.0003589,2]
[310160500,1704384720748,-500.0,0.0003589,2]
[310160501,1704384720758,-500.0,0.0003589,2]
[310160502,1704384720768,-510.31,0.0003589,2]
[310160503,1704384720778,-901.96,0.0003589,2]
[310160504,1704384720787,-500.0,0.0003589,2]
[310160505,1704384720797,-662.32,0.0003589,2]
[310160506,1704384720807,-830.54,0.0003589,2]
[310160507,1704384720817,-500.0,0.0003589,2]
[310160508,1704384720826,-500.0,0.0003589,2]
[310160509,1704384720836,-1824.67,0.0003589,2]
[310160510,1704384720846,-500.0,0.0003589,2]
[310160511,1704384720855,-931.95,0.0003589,2]
[310160512,1704384720866,-500.0,0.0003589,2]
[310160513,1704384720876,-500.0,0.0003589,2]
[310160514,1704384720885,-654.3,0.0003589,2]
[310160515,1704384720896,-500.0,0.0003589,2]
[310160516,1704384720905,-500.0,0.0003589,2]
[310160517,1704384720914,-500.0,0.0003589,2]
[310160518,1704384720923,-500.0,0.0003589,2]
[310160519,1704384720933,-1130.23,0.0003589,2]
[310160520,1704384720942,-500.0,0.0003589,2]
[310160521,1704384720952,-559.43,0.0003589,2]
[310160522,1704384720962,-347.87195535,0.0003589,2]
[310160523,1704384720971,-500.0,0.0003589,2]
[310160524,1704384720980,-1026.82,0.0003589,2]
[310160525,1704384720990,-250.23603384,0.0003589,2]
[310160526,1704384721000,-500.0,0.0003589,2]
[310160527,1704384721009,-586.09,0.0003589,2]
[310160528,1704384721019,-574.52,0.0003589,2]
[310160529,1704384721029,-500.0,0.0003589,2]
[310160530,1704384721039,-593.19,0.0003589,2]
[310160531,1704384721048,-633.75,0.0003589,2]
[310160532,1704384721058,-731.33,0.0003589,2]
[310160533,1704384721067,-756.82,0.0003589,2]
[310160534,1704384721077,-500.0,0.0003589,2]
[310160535,1704384721087,-500.0,0.0003589,2]
[310160536,1704384721097,-812.26,0.0003589,2]
[310160537,1704384721106,-500.0,0.0003589,2]
[310160538,1704384721116,-642.48,0.0003589,2]
[310160539,1704384721126,-500.0,0.0003589,2]
[310160540,1704384721136,-500.0,0.0003589,2]
[310160541,1704384721145,-995.06,0.0003589,2]
[310160542,1704384721155,-1428.61,0.0003589,2]
[310160543,1704384721164,-500.0,0.0003589,2]
[310160544,1704384721173,-500.0,0.0003589,2]
[310160545,1704384721182,-500.0,0.0003589,2]
[310160546,1704384721191,-719.19,0.0003589,2]
[310160547,1704384721201,-500.0,0.0003589,2]
[310160548,1704384721210,-966.27,0.0003589,2]
[310160549,1704384721219,-737.41,0.0003589,2]
[310160550,1704384721229,-500.0,0.0003589,2]
[310160551,1704384721241,-683.25,0.0003589,2]
[310160552,1704384721250,-708.7,0.0003589,2]
[310160553,1704384721259,-500.0,0.0003589,2]
[310160554,1704384721274,-1313.57,0.0003589,2]
[310160555,1704384721283,-537.81,0.0003589,2]
[310160556,1704384721292,-978.7,0.0003589,2]
[310160557,1704384721302,-500.0,0.0003589,2]
[310160558,1704384721311,-855.47,0.0003589,2]
[310160559,1704384721320,-500.0,0.0003589,2]
[310160560,1704384721330,-267.43929965,0.0003589,2]
[310160561,1704384721339,-500.0,0.0003589,2]
[310160562,1704384721348,-504.3,0.0003589,2]
[310160563,1704384721357,-500.0,0.0003589,2]
[310160564,1704384721367,-758.78,0.0003589,2]
[310160565,1704384721377,-500.0,0.0003589,2]
[310160566,1704384721388,-500.0,0.0003589,2]
[310160567,1704384721398,-1007.26,0.0003589,2]
[310160568,1704384721407,-500.0,0.0003589,2]
[310160569,1704384721418,-500.0,0.0003589,2]
[310160570,1704384721427,-500.0,0.0003589,2]
[310160571,1704384721436,-500.0,0.0003589,2]
[310160572,1704384721445,-500.0,0.0003589,2]
[310160573,1704384721457,-691.87,0.0003589,2]
[310160574,1704384721466,-944.11,0.0003589,2]
[310160575,1704384721476,-500.0,0.0003589,2]
[310160576,1704384721485,-1634.31,0.0003589,2]
[310160577,1704384721495,-500.0,0.0003589,2]
[310160578,1704384721505,-1233.69,0.0003589,2]
[310160579,1704384721514,-1332.99,0.0003589,2]
[310160580,1704384721523,-500.0,0.0003589,2]
[310160581,1704384721533,-1754.71,0.0003589,2]
[310160582,1704384721543,-650.36,0.0003589,2]
[310160583,1704384721552,-602.68,0.0003589,2]
[310160584,1704384721562,-1493.68,0.0003589,2]
[310160585,1704384721571,-500.0,0.0003589,2]
[310160586,1704384721581,-705.76,0.0003589,2]
[310160587,1704384721591,-1386.7,0.0003589,2]
[310160588,1704384721600,-1253.93,0.0003589,2]
[310160589,1704384721611,-500.0,0.0003589,2]
[310160590,1704384721621,-712.45,0.0003589,2]
[310160591,1704384721630,-1385.49,0.0003589,2]
[310160592,1704384721640,-719.5,0.0003589,2]
[310160593,1704384721649,-795.9,0.0003589,2]
[310160594,1704384721658,-500.0,0.0003589,2]
[310160595,1704384721668,-702.74,0.0003589,2]
[310160596,1704384721677,-614.02,0.0003589,2]
[310160597,1704384721686,-782.01,0.0003589,2]
[310160598,1704384721695,-2346.06,0.0003589,2]
[310160599,1704384721705,-1144.21,0.0003589,2]
[310160600,1704384721714,-234.97768826,0.0003589,2]
[310160601,1704384721724,-825.04,0.0003589,2]
[310160602,1704384721734,-759.74,0.0003589,2]
[310160603,1704384721745,-591.92,0.0003589,2]
[310160604,1704384721755,-500.0,0.0003589,2]
[310160605,1704384721774,-1538.71,0.0003589,2]
[310160606,1704384721790,-500.0,0.0003589,2]
[310160607,1704384721801,-1209.37,0.0003589,2]
[310160608,1704384721812,-500.0,0.0003589,2]
[310160609,1704384721823,-500.0,0.0003589,2]
[310160610,1704384721834,-1769.02,0.0003589,2]
[310160611,1704384721845,-1608.02,0.0003589,2]
[310160612,1704384721856,-866.14,0.0003589,2]
[310160613,1704384721868,-500.0,0.0003589,2]
[310160614,1704384721887,-597.7,0.0003589,2]
[310160615,1704384721897,-3238.36,0.0003589,2]
[310160616,1704384721907,-1312.71,0.0003589,2]
[310160617,1704384721918,-758.49,0.0003589,2]
[310160618,1704384721928,-861.13,0.0003589,2]
[310160619,1704384721938,-500.0,0.0003589,2]
[310160620,1704384721949,-554.04,0.0003589,2]
[310160621,1704384721960,-500.0,0.0003589,2]
[310160622,1704384721972,-910.85,0.0003589,2]
[310160623,1704384721982,-647.07,0.0003589,2]
[310160624,1704384721993,-596.22,0.0003589,2]
[310160625,1704384722004,-840.62,0.0003589,2]
[310160626,1704384722015,-552.48,0.0003589,2]
[310160627,1704384722025,-859.39,0.0003589,2]
[310160628,1704384722036,-1225.89,0.0003589,2]
[310160629,1704384722046,-957.37,0.0003589,2]
[310160630,1704384722056,-765.17,0.0003589,2]
[310160631,1704384722066,-562.44,0.0003589,2]
[310160632,1704384722077,-659.69,0.0003589,2]
[310160633,1704384722086,-514.52861637,0.0003589,2]
[310160634,1704384722096,-1445.4,0.0003589,2]
[310160635,1704384722106,-500.0,0.0003589,2]
[310160636,1704384722116,-704.58,0.0003589,2]
[310160637,1704384722131,-616.78,0.0003589,2]
[310160638,1704384722141,-683.51,0.0003589,2]
[310160639,1704384722151,-661.23,0.0003589,2]
[310160640,1704384722162,-529.83,0.0003589,2]
[310160641,1704384722173,-1000.0,0.0003589,3]
[310160642,1704384722183,-782.54,0.0003589,2]
[310160643,1704384722194,-588.15,0.0003589,2]
[310160644,1704384722204,-1195.11,0.0003589,2]
[310160645,1704384722214,-674.54,0.0003589,2]
[310160646,1704384722224,-1310.86,0.0003589,2]
[310160647,1704384722234,-831.54,0.0003589,2]
[310160648,1704384722244,-1110.558426,0.0003589,2]
[310160649,1704384722254,-500.0,0.0003589,2]
[310160650,1704384722263,-500.0,0.0003589,2]
[310160651,1704384722273,-1025.23,0.0003589,2]
[310160652,1704384722283,-1101.26,0.0003589,2]
[310160653,1704384722293,-785.28,0.0003589,2]
[310160654,1704384722303,-705.23,0.0003589,2]
[310160655,1704384722314,-1065.41,0.0003589,2]
[310160656,1704384722324,-500.0,0.0003589,2]
[310160657,1704384722334,-1054.98,0.0003589,2]
[310160658,1704384722344,-2000.0,0.0003589,2]
[310160659,1704384722354,-200.0,0.0003589,2]
[310160660,1704384722364,-995.7,0.0003589,2]
[310160661,1704384722378,-744.22,0.0003589,2]
[310160662,1704384722388,-500.0,0.0003589,2]
[310160663,1704384722400,-500.0,0.0003589,2]
[310160664,1704384722410,-1238.86,0.0003589,2]
[310160665,1704384722420,-1427.22,0.0003589,2]
[310160666,1704384722429,-887.92,0.0003589,2]
[310160667,1704384722439,-742.23,0.0003589,2]
[310160668,1704384722449,-500.0,0.0003589,2]
[310160669,1704384722460,-666.3,0.0003589,2]
[310160670,1704384722470,-907.32,0.0003589,2]
[310160671,1704384722481,-500.0,0.0003589,2]
[310160672,1704384722491,-702.86,0.0003589,2]
[310160673,1704384722501,-500.0,0.0003589,2]
[310160674,1704384722511,-500.0,0.0003589,2]
[310160675,1704384722520,-945.74,0.0003589,2]
[310160676,1704384722530,-920.91,0.0003589,2]
[310160677,1704384722540,-500.0,0.0003589,2]
[310160678,1704384722550,-672.89,0.0003589,2]
[310160679,1704384722559,-1400.63,0.0003589,2]
[310160680,1704384722569,-535.81,0.0003589,2]
[310160681,1704384722578,-500.0,0.0003589,2]
[310160682,1704384722588,-500.0,0.0003589,2]
[310160683,1704384722597,-750.79,0.0003589,2]
[310160684,1704384722607,-523.13,0.0003589,2]
[310160685,1704384722619,-1057.28,0.0003589,2]
[310160686,1704384722628,-1335.29,0.0003589,2]
[310160687,1704384722638,-878.66,0.0003589,2]
[310160688,1704384722647,-1605.48,0.0003589,2]
[310160689,1704384722656,-500.0,0.0003589,2]
[310160690,1704384722665,-500.0,0.0003589,2]
[310160691,1704384722675,-500.0,0.0003589,2]
[310160692,1704384722686,-762.22,0.0003589,2]
[310160693,1704384722696,-847.37,0.0003589,2]
[310160694,1704384722705,-500.0,0.0003589,2]
[310160695,1704384722716,-1736.22,0.0003589,2]
[310160696,1704384722725,-381.8107434,0.0003589,2]
[310160697,1704384722735,-192.19893391,0.0003589,2]
[310160698,1704384722744,-668.67,0.0003589,2]
[310160699,1704384722753,-1025.7,0.0003589,2]
[310160700,1704384722764,-500.0,0.0003589,2]
[310160701,1704384722774,-530.17,0.0003589,2]
[310160702,1704384722783,-500.0,0.0003589,2]
[310160703,1704384722792,-500.0,0.0003589,2]
[310160704,1704384722801,-790.72,0.0003589,2]
[310160705,1704384722811,-500.0,0.0003589,2]
[310160706,1704384722822,-959.6,0.0003589,2]
[310160707,1704384722832,-500.0,0.0003589,2]
[310160708,1704384722841,-516.03,0.0003589,2]
[310160709,1704384722851,-506.97,0.0003589,2]
[310160710,1704384722861,-873.69,0.0003589,2]
[310160711,1704384722872,-500.0,0.0003589,2]
[310160712,1704384722882,-1032.21,0.0003589,2]
[310160713,1704384722892,-529.99,0.0003589,2]
[310160714,1704384722902,-500.0,0.0003589,2]
[310160715,1704384722912,-917.61,0.0003589,2]
[310160716,1704384722921,-500.0,0.0003589,2]
[310160717,1704384722931,-500.0,0.0003589,2]
[310160718,1704384722942,-610.7,0.0003589,2]
[310160719,1704384722952,-1220.03,0.0003589,2]
[310160720,1704384722962,-1169.06,0.0003589,2]
[310160721,1704384722971,-500.0,0.0003589,2]
[310160722,1704384722981,-534.36,0.0003589,2]